bitfinex/quotes_ETHUSD_20240604
["timestamp","ask_amount","ask_price","bid_price","bid_amount"]
[1717497369626,2.65568,3765.6,3764.9,0.08716812]
[1717497369920,2.4607,3766.2,3764.4,2.65643]
[1717497369921,1.933,3765.5,3764.4,2.65643]
[1717497370125,2.65607,3765.0,3764.1,2.4999]
[1717497370285,2.65607,3765.0,3764.1,3.07123888]
[1717497374787,2.65607,3765.0,3764.2,0.08699026]
[1717497376259,2.65607,3765.0,3764.3,0.92301512]
[1717497376732,2.65607,3765.0,3764.4,0.08699026]
[1717497377086,2.65607,3765.0,3764.1,5.01253153]
[1717497377290,2.65607,3765.0,3764.5,0.08699026]
[1717497377503,2.65607,3765.0,3764.3,2.6565]
[1717497377706,2.65607,3765.0,3764.6,0.08699026]
[1717497377906,2.65607,3765.0,3764.3,2.6565]
[1717497378188,2.65607,3765.0,3764.7,0.08699026]
[1717497378531,2.65607,3765.0,3764.3,3.21326877]
[1717497378830,2.65607,3765.0,3764.8,0.08699026]
[1717497378987,2.65607,3765.0,3764.4,1.38450837]
[1717497379190,2.65607,3765.0,3764.3,3.21326877]
[1717497379191,2.65607,3765.0,3764.9,0.08699026]
[1717497379404,2.65607,3765.0,3764.3,4.59777714]
[1717497379605,2.65607,3765.0,3764.9,0.08699026]
[1717497379828,2.65607,3765.0,3764.3,4.59777714]
[1717497380132,2.65607,3765.0,3764.4,2.07292612]
[1717497380432,2.65607,3765.0,3764.5,0.92300746]
[1717497380796,2.65607,3765.0,3764.6,0.08715966]
[1717497381412,2.65607,3765.0,3764.3,1.94127714]
[1717497381614,2.65607,3765.0,3764.7,0.08715966]
[1717497381905,3.114977,3765.0,3764.8,0.08715966]
[1717497382126,2.65607,3765.0,3764.3,0.55676877]
[1717497382312,2.65607,3765.0,3764.9,0.08715966]
[1717497382513,2.65607,3765.0,3764.3,0.55676877]
[1717497382713,2.65607,3765.0,3764.9,0.08715966]
[1717497382938,2.65607,3765.0,3764.3,1.94128872]
[1717497383130,2.65607,3765.0,3764.9,0.08715966]
[1717497383436,2.65607,3765.0,3764.3,1.94128872]
[1717497383642,2.65607,3765.0,3764.9,0.08715966]
[1717497383811,2.65607,3765.0,3764.3,1.94128872]
[1717497384018,2.65607,3765.0,3764.9,0.08715966]
[1717497384544,2.65607,3765.0,3764.3,1.94128872]
[1717497384722,2.65607,3765.0,3764.9,0.08715966]
[1717497384927,2.65607,3765.0,3764.3,3.51255398]
[1717497385129,2.65607,3765.0,3764.9,0.08715966]
[1717497385323,2.65607,3765.0,3764.3,1.94128872]
[1717497385526,2.65607,3765.0,3764.9,0.08715966]
[1717497385725,2.65607,3765.0,3764.3,1.94128872]
[1717497385942,2.65607,3765.0,3764.9,0.08715966]
[1717497386139,2.65607,3765.0,3764.3,1.94128872]
[1717497386343,2.65607,3765.0,3764.9,0.08715966]
[1717497386520,2.65607,3765.0,3764.3,1.94128872]
[1717497386703,2.65607,3765.0,3764.9,0.08715966]
[1717497387040,2.65607,3765.0,3764.3,1.94128872]
[1717497387241,2.65607,3765.0,3764.9,0.08715966]
[1717497387447,2.65607,3765.0,3764.3,1.94128872]
[1717497387618,2.65607,3765.0,3764.9,0.08715966]
[1717497387822,2.65607,3765.0,3764.3,2.59595266]
[1717497388009,2.65607,3765.0,3764.9,0.08715966]
[1717497388209,2.65607,3765.0,3764.4,0.92301443]
[1717497388437,2.65607,3765.0,3764.9,0.08715966]
[1717497388640,2.65607,3765.0,3764.3,2.59595266]
[1717497388812,2.65607,3765.0,3764.9,0.08715966]
[1717497389012,2.65607,3765.0,3764.3,0.55676877]
[1717497389249,2.65607,3765.0,3764.9,0.08715966]
[1717497391550,0.805,3764.8,3764.6,0.92298771]
[1717497392142,0.805,3764.8,3764.5,0.27764419]
[1717497392337,0.805,3764.6,3764.4,1.94126693]
[1717497392539,0.805,3764.6,3764.5,0.92300724]
[1717497394265,0.805,3764.6,3764.5,2.3075054]
[1717497397349,0.805,3764.6,3764.5,2.86427417]
[1717497397661,0.805,3764.6,3764.2,1.94126693]
[1717497397864,0.805,3764.4,3764.3,0.92307637]
[1717497398046,0.805,3764.4,3764.0,1.94126693]
[1717497398249,0.805,3764.2,3764.1,0.92315787]
[1717497398657,0.805,3764.2,3764.1,2.30765603]
[1717497398849,0.805,3764.2,3764.1,0.92315787]
[1717497399042,0.805,3764.2,3764.1,2.30765603]
[1717497399254,0.805,3764.2,3764.1,0.92315787]
[1717497400670,0.805,3764.2,3764.1,2.30790473]
[1717497400871,2.65639,3764.6,3764.1,2.6778874]
[1717497401073,2.6561,3765.0,3764.2,2.30790473]
[1717497401257,0.805,3764.7,3764.3,0.92316189]
[1717497401450,0.805,3764.7,3764.4,2.30790473]
[1717497401634,0.805,3764.7,3764.5,0.92316189]
[1717497401975,0.805,3764.7,3764.4,1.38474284]
[1717497402173,0.805,3764.7,3764.5,0.92305631]
[1717497402336,0.805,3764.7,3764.4,1.38474284]
[1717497402661,0.805,3764.7,3764.5,0.92305734]
[1717497403375,3.46125,3764.7,3764.5,0.92305734]
[1717497403671,3.46125,3764.7,3764.4,1.38474284]
[1717497403868,0.805,3764.5,3764.2,0.55676877]
[1717497404080,0.805,3764.5,3764.3,2.30765516]
[1717497404238,0.805,3764.5,3764.4,2.30765516]
[1717497404440,0.805,3764.5,3764.4,0.92306221]
[1717497404640,0.805,3764.5,3764.4,2.30765516]
[1717497404861,0.805,3764.5,3764.4,1.01051833]
[1717497406184,0.805,3764.5,3764.4,1.01052264]
[1717497406971,0.805,3764.5,3764.4,0.08745612]
[1717497407289,2.65647,3764.4,3763.9,1.94147324]
[1717497407485,0.805,3764.2,3764.0,2.30786383]
[1717497407641,0.805,3764.2,3764.1,0.92315936]
[1717497408284,2.65669,3764.1,3763.8,1.38470447]
[1717497408447,1.151147,3764.2,3763.5,0.83515315]
[1717497408448,2.65692,3763.8,3763.6,1.38470447]
[1717497408648,2.65692,3763.8,3763.3,0.83515315]
[1717497408649,0.805,3763.7,3763.4,1.38470447]
[1717497408850,2.65692,3763.8,3763.5,0.92329214]
[1717497409083,0.805,3763.5,3763.2,1.38470447]
[1717497409278,0.805,3763.5,3763.3,0.9233645]
[1717497409583,0.805,3763.5,3763.1,1.38470447]
[1717497409584,0.805,3763.5,3763.1,1.94147324]
[1717497409893,0.805,3763.5,3763.2,0.92335998]
[1717497410315,0.805,3763.5,3763.0,1.94147324]
[1717497410613,0.805,3763.5,3763.1,0.92335934]
[1717497410818,0.805,3763.6,3763.1,0.92335934]
[1717497410969,2.65692,3763.8,3763.1,0.92335934]
[1717497410970,0.805,3763.4,3763.1,0.92335934]
[1717497411370,0.805,3763.4,3762.9,0.55676877]
[1717497411623,0.805,3763.4,3763.0,0.92336868]
[1717497413725,0.805,3763.4,3762.9,0.54283553]
[1717497413891,0.805,3763.4,3763.0,0.92337571]
[1717497414277,0.805,3763.4,3762.9,0.54283553]
[1717497414508,0.805,3763.4,3762.7,0.55676877]
[1717497414710,0.805,3763.4,3762.8,0.92337484]
[1717497416020,2.65713,3763.5,3762.8,0.92337484]
[1717497416491,0.805,3763.6,3762.9,35.0]
[1717497416692,0.805,3763.8,3763.0,0.92337484]
[1717497416877,0.805,3763.8,3763.1,2.65030545]
[1717497417075,0.805,3763.8,3763.0,2.30841474]
[1717497417277,2.65686,3763.9,3763.1,0.92330879]
[1717497417477,0.805,3763.7,3763.2,35.0]
[1717497418120,0.805,3763.7,3763.0,2.65742]
[1717497418535,9.7241,3764.8,3763.1,40.0911]
[1717497418821,0.805,3764.4,3763.4,0.805]
[1717497418976,0.805,3764.4,3763.5,0.92328985]
[1717497419181,0.805,3764.2,3763.6,2.65698]
[1717497419783,0.805,3764.2,3763.7,0.07959022]
[1717497419972,0.805,3764.2,3763.8,0.27365702]
[1717497420305,0.805,3764.2,3763.9,0.07959022]
[1717497421577,2.65627,3764.7,3763.9,0.07959022]
[1717497421803,0.805,3764.4,3763.9,0.07959022]
[1717497425415,2.65627,3764.7,3763.9,2.73639022]
[1717497425605,0.805,3764.4,3763.9,2.73639022]
[1717497425807,0.805,3764.4,3763.9,3.03739494]
[1717497425978,0.805,3764.6,3763.9,3.03739494]
[1717497426426,2.65627,3764.7,3763.9,3.03739494]
[1717497426605,0.805,3764.6,3763.9,3.03739494]
[1717497430551,0.805,3764.5,3763.9,3.03739494]
[1717497430767,2.65602,3765.1,3764.0,0.5711652]
[1717497430936,0.805,3764.8,3764.0,0.5711652]
[1717497431135,0.805,3764.8,3764.1,0.07908687]
[1717497431874,0.805,3764.8,3764.2,2.6566]
[1717497432595,0.805,3764.8,3764.3,0.07908687]
[1717497432950,0.805,3764.8,3764.2,2.6566]
[1717497433169,0.805,3764.8,3764.4,0.07890505]
[1717497433379,0.805,3764.8,3764.2,3.28411183]
[1717497433579,2.65574,3765.5,3764.4,2.65645]
[1717497434081,2.65574,3765.5,3764.5,0.07890505]
[1717497434082,0.805,3765.2,3764.5,0.07890505]
[1717497434278,3.167834,3765.5,3764.5,0.07890505]
[1717497434470,0.805,3765.1,3764.5,0.07890505]
[1717497435890,2.65546,3765.9,3764.7,0.805]
[1717497436186,2.65546,3765.9,3764.8,1.00178135]
[1717497436425,0.805,3765.6,3764.8,0.07888814]
[1717497436790,2.65546,3765.9,3764.8,0.07888814]
[1717497436791,2.65546,3765.9,3764.9,2.6561]
[1717497436945,2.65546,3765.9,3765.2,2.65589]
[1717497437152,2.65546,3765.9,3765.3,0.07882895]
[1717497437552,0.805,3765.8,3765.3,0.07882895]
[1717497437780,0.805,3765.8,3765.2,2.65589]
[1717497437965,0.805,3765.8,3765.3,0.07882895]
[1717497438177,0.805,3765.8,3765.2,2.65589]
[1717497438657,0.805,3765.8,3765.3,0.07882895]
[1717497439080,0.805,3765.8,3765.2,2.65589]
[1717497439298,0.805,3765.8,3765.4,0.07620132]
[1717497439603,0.805,3765.9,3765.5,0.07620132]
[1717497439754,0.805,3765.9,3765.2,2.65589]
[1717497439955,0.805,3765.9,3765.3,0.07620132]
[1717497440581,2.65517,3766.3,3765.3,0.07620132]
[1717497441036,0.805,3766.0,3765.3,0.07620132]
[1717497441504,0.805,3766.2,3765.3,0.07620132]
[1717497441713,0.805,3765.4,3765.3,0.07620132]
[1717497442064,0.805,3765.4,3764.6,7.32]
[1717497442065,3.2046,3765.4,3764.6,7.32]
[1717497442415,3.2046,3765.4,3764.7,0.0755249]
[1717497442416,0.805,3765.2,3764.7,0.0755249]
[1717497442709,3.46091,3765.2,3764.7,0.0755249]
[1717497443005,3.46091,3765.2,3764.8,0.0755249]
[1717497443164,0.805,3765.0,3764.8,0.0755249]
[1717497443365,0.805,3765.0,3764.2,2.3294]
[1717497443677,0.805,3765.0,3764.3,0.71175042]
[1717497443887,2.65611,3764.9,3764.3,0.71175042]
[1717497444104,2.65611,3764.9,3764.3,0.0755249]
[1717497444413,2.65611,3764.9,3764.0,4.0328552]
[1717497444705,2.65611,3764.9,3764.4,0.0755249]
[1717497445006,2.65611,3764.9,3764.5,0.0755249]
[1717497445164,2.65611,3764.9,3764.0,4.0328552]
[1717497445486,2.65611,3764.9,3764.2,0.805]
[1717497446001,2.65611,3764.9,3764.3,0.0755249]
[1717497447566,2.65584,3765.3,3764.3,0.0755249]
[1717497447777,2.65584,3765.3,3764.3,2.7320449]
[1717497448024,0.805,3765.2,3764.3,2.7320449]
[1717497448196,0.805,3765.2,3764.4,0.60374309]
[1717497448584,0.805,3765.2,3764.5,0.0755249]
[1717497452180,2.65584,3765.3,3764.5,2.3739249]
[1717497453105,2.65584,3765.3,3764.6,0.805]
[1717497453280,2.65584,3765.3,3764.6,3.46131]
[1717497453482,2.65584,3765.3,3764.7,0.71984542]
[1717497454024,3.46084,3765.3,3764.7,0.71984542]
[1717497454196,3.46084,3765.3,3764.7,0.07594762]
[1717497454395,3.46084,3765.3,3764.4,0.60374309]
[1717497454597,3.46084,3765.3,3764.5,0.07585039]
[1717497458938,0.805,3765.1,3764.5,0.07585039]
[1717497459137,2.65625,3764.7,3764.5,0.07585039]
[1717497459333,0.805,3764.6,3764.5,0.07585039]
[1717497459930,0.805,3764.6,3763.9,7.32]
[1717497460129,0.805,3764.6,3764.5,0.07585039]
[1717497460326,0.805,3764.6,3764.0,1.834597]
[1717497460489,0.805,3764.6,3764.5,0.07585039]
[1717497460689,0.805,3764.6,3764.0,1.834597]
[1717497460890,0.805,3764.6,3764.5,0.07585039]
[1717497461097,0.805,3764.6,3764.0,1.834597]
[1717497461291,0.805,3764.6,3764.5,0.07585039]
[1717497461524,0.805,3764.6,3764.0,1.834597]
[1717497461732,0.805,3764.6,3764.5,0.07585039]
[1717497462037,0.805,3764.6,3764.5,0.07593495]
[1717497462213,0.805,3764.6,3763.9,7.32]
[1717497462430,2.6564,3764.5,3764.0,0.07593495]
[1717497463257,0.805,3764.4,3764.0,0.07593495]
[1717497464042,0.805,3764.4,3763.8,5.31]
[1717497464240,0.805,3764.4,3764.1,0.07593495]
[1717497464399,0.805,3764.4,3763.8,5.89667688]
[1717497464603,0.805,3764.4,3763.9,0.07593495]
[1717497464828,2.6564,3764.5,3763.9,0.07593495]
[1717497469598,0.805,3764.4,3763.9,0.07593495]
[1717497469993,0.805,3764.4,3763.6,3.21377877]
[1717497470237,0.805,3764.4,3764.0,0.07593495]
[1717497470550,0.805,3764.4,3763.7,1.16834499]
[1717497470838,0.805,3764.4,3764.1,0.07593495]
[1717497471141,2.6564,3764.5,3763.7,1.16834499]
[1717497471339,2.6564,3764.5,3764.2,0.07620976]
[1717497471638,2.6564,3764.5,3763.7,1.72511376]
[1717497471850,2.6564,3764.5,3764.3,0.07621822]
[1717497472015,2.6564,3764.5,3763.8,0.92533005]
[1717497472212,2.6564,3764.5,3764.4,0.07621822]
[1717497472417,2.6564,3764.5,3763.8,0.92533005]
[1717497472614,2.6564,3764.5,3764.4,0.07621822]
[1717497472815,2.6564,3764.5,3763.8,0.92533005]
[1717497473031,2.6564,3764.5,3764.4,0.07621822]
[1717497473348,2.6564,3764.5,3763.8,0.92533005]
[1717497473549,2.6564,3764.5,3764.4,0.07621822]
[1717497474032,2.6564,3764.5,3763.8,1.53523185]
[1717497474225,2.6564,3764.5,3764.4,0.07621822]
[1717497474548,2.6564,3764.5,3763.8,1.48209882]
[1717497474750,2.6564,3764.5,3764.4,0.07627742]
[1717497475043,2.6564,3764.5,3763.9,0.63589814]
[1717497475202,2.6564,3764.5,3764.4,0.07627742]
[1717497475403,2.6564,3764.5,3763.9,0.63589814]
[1717497475603,2.6564,3764.5,3764.4,0.07627742]
[1717497475847,2.6564,3764.5,3763.9,0.63589814]
[1717497476002,2.6564,3764.5,3764.4,0.07627742]
[1717497476338,2.6564,3764.5,3763.9,0.63589814]
[1717497476644,2.6564,3764.5,3764.0,0.92309346]
[1717497476856,2.6564,3764.5,3764.0,1.21094692]
[1717497477066,2.6564,3764.5,3764.0,0.28785346]
[1717497477352,3.4614,3764.5,3764.0,0.28785346]
[1717497482720,2.6564,3764.5,3764.0,0.07627742]
[1717497483050,3.4614,3764.5,3764.0,0.07627742]
[1717497483548,0.805,3764.5,3764.1,0.92309189]
[1717497483862,0.805,3764.7,3764.1,0.9993228]
[1717497484150,0.805,3764.7,3764.1,0.07623091]
[1717497484506,2.65616,3764.9,3764.1,0.53103261]
[1717497484755,2.65589,3765.3,3764.2,2.73283091]
[1717497484909,1.37911944,3765.2,3764.3,0.92301721]
[1717497485104,2.6553,3766.1,3764.7,0.805]
[1717497485105,2.65556,3765.7,3764.7,0.805]
[1717497485324,0.5740618,3765.6,3764.7,0.805]
[1717497485523,3.46056,3765.7,3764.8,0.55676877]
[1717497485743,3.46056,3765.7,3764.9,0.92287465]
[1717497485941,3.46056,3765.7,3765.0,0.07612943]
[1717497486146,3.46056,3765.7,3765.1,0.92287465]
[1717497486675,3.46056,3765.7,3765.2,0.07612943]
[1717497487042,3.46056,3765.7,3764.9,2.65609]
[1717497487378,3.46056,3765.7,3765.0,1.62272028]
[1717497487532,0.805,3765.7,3765.1,0.92284378]
[1717497487961,0.805,3765.7,3765.2,0.07612943]
[1717497488274,0.805,3765.7,3765.0,1.38445878]
[1717497488432,0.805,3765.7,3765.3,0.07612943]
[1717497488628,0.805,3765.5,3764.9,2.65609]
[1717497488968,0.805,3765.5,3765.0,0.99898699]
[1717497489143,0.805,3765.5,3765.1,0.92285756]
[1717497489551,0.805,3765.5,3765.2,0.07612943]
[1717497489774,0.805,3765.5,3764.9,2.65609]
[1717497489977,0.805,3765.5,3765.0,0.99897637]
[1717497490184,0.805,3765.3,3765.0,0.07612943]
[1717497490542,0.805,3765.5,3765.0,0.07612943]
[1717497491976,2.65549,3765.8,3765.0,0.07612943]
[1717497492177,2.65549,3765.8,3765.1,0.92285801]
[1717497492178,0.805,3765.7,3765.1,0.92285801]
[1717497492482,0.805,3765.7,3764.9,2.65609]
[1717497492775,0.805,3765.5,3765.2,0.07612943]
[1717497492949,0.805,3765.5,3765.3,0.07612943]
[1717497493367,0.805,3765.5,3765.4,0.07612943]
[1717497494186,0.805,3765.5,3764.9,2.65609]
[1717497494394,0.805,3765.5,3765.0,0.9228686]
[1717497494745,0.805,3765.5,3765.1,0.07612943]
[1717497495563,0.805,3765.5,3764.9,3.38389584]
[1717497495772,0.805,3765.5,3765.0,0.92284933]
[1717497496267,0.805,3765.5,3765.1,0.07612943]
[1717497496842,0.805,3765.5,3764.9,3.38389584]
[1717497497038,0.805,3765.5,3765.0,0.99897557]
[1717497497238,0.805,3765.5,3765.0,0.07612943]
[1717497498841,0.805,3765.7,3765.0,0.07612943]
[1717497501896,2.65549,3765.8,3765.0,0.07612943]
[1717497501897,0.805,3765.5,3765.0,0.07612943]
[1717497503354,0.805,3765.3,3765.0,0.07612943]
[1717497503553,0.805,3765.1,3765.0,0.07612943]
[1717497503803,3.46104,3765.1,3764.5,0.55676877]
[1717497504033,2.65604,3765.1,3765.0,0.07582503]
[1717497504186,3.46104,3765.1,3764.3,2.65653]
[1717497504374,2.65604,3765.1,3765.0,0.07329836]
[1717497504572,3.965334,3765.1,3764.3,2.65653]
[1717497504755,2.65604,3765.1,3764.3,2.65653]
[1717497504960,0.805,3764.9,3764.3,2.65653]
[1717497505168,0.805,3764.9,3764.4,0.07321381]
[1717497506897,2.65604,3765.1,3764.4,0.07321381]
[1717497507114,0.805,3765.1,3764.5,2.65639]
[1717497507257,0.805,3764.9,3764.4,0.07321381]
[1717497507456,0.805,3764.9,3764.1,3.21337877]
[1717497507652,0.805,3764.9,3764.2,0.99622195]
[1717497507883,0.805,3764.9,3764.3,0.92300814]
[1717497508591,0.805,3764.9,3764.4,0.07321381]
[1717497509004,0.805,3764.9,3764.1,3.21337877]
[1717497509300,0.805,3764.9,3764.2,1.4083703]
[1717497509459,0.805,3764.9,3764.3,0.92301711]
[1717497509655,0.805,3764.9,3764.4,0.07321381]
[1717497510071,0.805,3764.9,3764.2,0.48535319]
[1717497510385,0.805,3764.9,3764.3,0.99622339]
[1717497510588,0.805,3764.9,3764.4,0.92300958]
[1717497511093,0.805,3764.9,3764.5,0.07321381]
[1717497511591,0.805,3764.9,3764.4,2.65645]
[1717497511795,0.805,3765.1,3764.4,2.65645]
[1717497511998,0.805,3765.1,3764.5,0.07321381]
[1717497512595,2.65597,3765.2,3764.5,0.07321381]
[1717497512801,0.805,3765.1,3764.5,0.66604132]
[1717497514301,0.805,3765.1,3764.6,0.92297561]
[1717497514663,0.805,3765.1,3764.7,0.07341251]
[1717497515277,0.805,3765.1,3764.5,0.59282751]
[1717497515483,0.805,3765.1,3764.6,0.99637974]
[1717497515711,0.805,3765.1,3764.6,1.01190771]
[1717497518519,0.805,3765.1,3764.7,0.92296605]
[1717497519211,0.805,3765.3,3764.8,0.07341251]
[1717497519410,2.3869,3765.4,3764.9,0.92290986]
[1717497519612,0.805,3765.4,3764.9,0.92290986]
[1717497519939,0.805,3765.4,3765.0,0.99629223]
[1717497520077,0.805,3765.4,3765.0,0.07341251]
[1717497520270,0.805,3765.4,3764.8,0.55676877]
[1717497520591,0.805,3765.4,3764.9,1.63338822]
[1717497520788,0.805,3765.4,3765.0,0.92286395]
[1717497521518,0.805,3765.4,3765.1,0.07341251]
[1717497522121,2.65568,3765.6,3765.1,0.07341251]
[1717497522324,3.46068,3765.6,3764.9,2.6561]
[1717497522630,3.46068,3765.6,3765.2,0.07341251]
[1717497522845,2.2542,3765.7,3765.1,2.65595]
[1717497523025,5.03189,3766.0,3765.3,0.07341251]
[1717497523224,0.805,3765.8,3765.1,4.04026027]
[1717497523538,0.805,3765.6,3765.2,0.92280542]
[1717497523738,0.805,3765.6,3765.3,0.92280595]
[1717497523951,0.805,3765.6,3765.2,1.00954125]
[1717497524232,0.805,3765.6,3765.3,0.92280658]
[1717497524536,0.805,3765.6,3765.3,0.99596967]
[1717497524835,0.805,3765.6,3765.3,0.07316309]
[1717497525039,0.805,3765.6,3765.3,0.9346057]
[1717497525239,0.805,3765.6,3765.4,0.07316309]
[1717497526349,2.3003,3765.5,3765.4,0.07316309]
[1717497526702,2.3003,3765.5,3764.8,4.59726723]
[1717497527018,0.805,3765.3,3764.9,0.92290357]
[1717497528106,0.805,3765.1,3764.9,0.92290357]
[1717497528500,0.805,3765.1,3765.0,0.92291299]
[1717497528697,0.805,3765.1,3764.9,0.92291299]
[1717497529036,0.805,3765.1,3765.0,0.92291299]
[1717497530111,0.805,3765.1,3764.8,0.55676877]
[1717497530337,0.805,3765.1,3764.9,2.30726816]
[1717497530537,0.805,3765.1,3765.0,0.92290726]
[1717497531652,0.805,3765.1,3765.0,2.307269]
[1717497531850,0.805,3765.1,3765.0,0.9229076]
[1717497532051,0.805,3765.1,3765.0,2.307269]
[1717497532249,0.805,3765.1,3765.0,0.9229076]
[1717497534921,2.65576,3765.4,3765.0,0.9229076]
[1717497535131,2.65576,3765.4,3765.1,0.92291685]
[1717497535132,0.805,3765.3,3765.1,0.92291685]
[1717497535321,0.805,3765.3,3764.9,1.3843614]
[1717497535520,0.805,3765.3,3765.0,2.30726411]
[1717497535762,0.805,3765.3,3765.1,0.92290271]
[1717497536958,0.805,3765.3,3765.0,1.38434534]
[1717497537106,2.65576,3765.4,3765.1,0.92289711]
[1717497537305,0.805,3765.3,3765.1,0.92289711]
[1717497537507,0.805,3765.3,3765.0,1.38434534]
[1717497537719,0.805,3765.3,3765.1,0.92288332]
[1717497537915,0.805,3765.3,3765.0,1.38434534]
[1717497538221,0.805,3765.3,3765.1,0.92288065]
[1717497538425,0.805,3765.3,3765.0,1.38434534]
[1717497538625,0.805,3765.3,3765.0,1.92759307]
[1717497538824,0.805,3765.3,3765.1,2.30713467]
[1717497539029,0.805,3765.3,3765.2,0.92285387]
[1717497539413,0.805,3765.3,3764.9,1.94104957]
[1717497539616,0.805,3765.3,3765.0,2.30717895]
[1717497539814,0.805,3765.3,3765.1,0.92289815]
[1717497540062,0.805,3765.3,3765.2,0.92289815]
[1717497540359,2.65568,3765.6,3765.2,0.99600206]
[1717497540360,0.805,3765.5,3765.2,0.99600206]
[1717497540514,0.805,3765.3,3765.2,0.07310391]
[1717497540852,0.805,3765.3,3765.2,0.99597902]
[1717497541049,0.805,3765.3,3765.2,0.92287511]
[1717497541260,7.32,3767.3,3765.4,5.0524]
[1717497541605,2.65431,3767.5,3766.2,2.65517]
[1717497541719,0.805,3767.0,3766.2,2.65517]
[1717497541920,0.805,3767.0,3766.3,0.9225724]
[1717497542126,0.805,3766.8,3766.3,0.9956594]
[1717497542333,3.1685,3766.8,3766.3,0.073087]
[1717497542742,3.1685,3766.8,3765.9,0.55676877]
[1717497542954,3.1685,3766.8,3766.4,0.073087]
[1717497543122,3.1685,3766.8,3765.9,0.55676877]
[1717497543453,3.1685,3766.8,3766.5,0.073087]
[1717497543654,3.1685,3766.8,3765.8,1.94079254]
[1717497543859,3.1685,3766.8,3766.6,0.0727236]
[1717497544040,3.1685,3766.8,3765.8,0.55676877]
[1717497544557,3.1685,3766.8,3765.9,0.99533474]
[1717497544718,3.7854154,3766.8,3765.9,0.0727236]
[1717497545053,1.4219154,3766.8,3766.0,0.92261351]
[1717497545364,0.6169154,3766.8,3766.1,0.07232217]
[1717497545565,2.6547,3766.9,3766.1,0.07232217]
[1717497545566,3.4597,3766.9,3766.1,0.07232217]
[1717497545784,3.4597,3766.9,3765.9,0.805]
[1717497546076,3.4597,3766.9,3766.2,0.07232217]
[1717497546228,3.4597,3766.9,3765.9,0.805]
[1717497546428,3.4597,3766.9,3766.3,0.07232217]
[1717497546631,3.4597,3766.9,3765.9,0.805]
[1717497546885,3.4597,3766.9,3766.4,0.07232217]
[1717497547166,3.4597,3766.9,3765.9,0.805]
[1717497547320,3.4597,3766.9,3766.5,0.07232217]
[1717497547522,0.34597,3766.8,3765.9,0.805]
[1717497547762,3.4597,3766.9,3766.0,0.99488286]
[1717497547962,2.6547,3766.9,3766.0,0.07232217]
[1717497548280,3.4597,3766.9,3766.0,0.07232217]
[1717497550951,2.6547,3766.9,3766.0,2.72760217]
[1717497551263,3.4597,3766.9,3766.0,3.55444164]
[1717497551579,3.4597,3766.9,3766.0,2.72760217]
[1717497553362,2.6547,3766.9,3766.0,3.53260217]
[1717497554279,2.6547,3766.9,3766.1,0.0530974]
[1717497554485,2.6547,3766.9,3766.2,0.07223769]
[1717497555535,3.4597,3766.9,3766.2,0.07223769]
[1717497555735,2.6547,3766.9,3766.0,2.65528]
[1717497556077,3.4597,3766.9,3766.1,2.65030545]
[1717497556274,2.6547,3766.9,3766.2,0.07203912]
[1717497557480,3.4597,3766.9,3766.2,0.07203912]
[1717497557978,3.4597,3766.9,3766.0,2.65528]
[1717497558293,3.4597,3766.9,3766.1,0.346028]
[1717497558591,2.6547,3766.9,3766.2,0.12513776]
[1717497558810,2.6547,3766.9,3766.2,0.07203912]
[1717497560273,0.805,3766.6,3766.2,0.07203912]
[1717497560473,0.805,3766.6,3766.0,2.65528]
[1717497560786,0.805,3766.8,3766.1,0.07203912]
[1717497563215,0.805,3766.8,3766.1,0.34477103]
[1717497564117,2.2718,3767.2,3766.3,0.805]
[1717497564354,2.2718,3767.2,3766.4,0.07212361]
[1717497564742,3.45957,3767.1,3766.4,0.07212361]
[1717497565062,3.45957,3767.1,3766.2,2.65517]
[1717497565366,3.45957,3767.1,3766.3,0.37329019]
[1717497565654,3.45957,3767.1,3766.3,0.44540957]
[1717497566815,2.6548,3766.8,3766.3,0.07211938]
[1717497567157,0.805,3766.7,3766.0,2.4809]
[1717497567311,0.805,3766.7,3766.4,0.07217431]
[1717497567507,0.805,3766.7,3766.0,2.4809]
[1717497567868,2.4095,3767.1,3766.0,2.4809]
[1717497567869,0.805,3766.8,3766.1,0.07213207]
[1717497568527,2.4095,3767.1,3766.3,0.805]
[1717497569051,2.4095,3767.1,3766.4,0.07213207]
[1717497569412,0.805,3767.0,3766.2,2.65514]
[1717497570080,0.805,3767.0,3766.3,0.07213207]
[1717497570381,0.1260438,3769.1,3766.8,2.4222]
[1717497570513,0.57370533,3769.0,3767.9,6.25397]
[1717497570857,0.1260438,3769.1,3768.3,2.6537]
[1717497570858,0.57370533,3768.9,3768.3,2.6537]
[1717497571060,0.805,3769.0,3768.3,2.6537]
[1717497571441,0.805,3769.0,3768.4,0.07165487]
[1717497571827,0.805,3768.7,3768.4,0.07165487]
[1717497573845,0.1260438,3769.1,3768.4,0.07165487]
[1717497574258,0.1260438,3769.1,3768.5,2.70663554]
[1717497574577,0.1260438,3769.1,3768.6,0.06889917]
[1717497576176,0.1260438,3769.1,3768.7,2.92563692]
[1717497576385,0.00428773,3771.0,3770.1,2.65242]
[1717497576736,0.00428773,3771.0,3770.2,0.06882743]
[1717497578403,1.927,3770.8,3770.2,0.06882743]
[1717497578701,2.3163,3770.6,3770.2,0.06882743]
[1717497578833,4.96844,3770.6,3769.1,2.65311]
[1717497579175,4.96844,3770.6,3768.7,0.27224692]
[1717497579176,2.65243,3770.2,3768.7,0.27224692]
[1717497579377,2.65243,3770.2,3769.2,0.06083477]
[1717497579536,0.60233389,3770.4,3768.6,2.65348]
[1717497579537,2.6528,3769.6,3768.6,2.65348]
[1717497579888,2.65242,3770.2,3768.7,0.06083477]